Cogmind - Beta 17 @@@ ROGUE MODE // 2026.07.15 @ 12:54:55 Player: pinbox Result: Destroyed by G-73 Enforcer with Heavy Laser Performance ------------- Evolutions (9) 4500 Regions Visited (14) 2800 Robots Destroyed (55) 275 Value Destroyed (1903) 1903 Prototype IDs (44) 880 Alien Tech Used (0) 0 Bonus (1917) 1917 TOTAL SCORE: 12275 Bonus ------- High Alert Combat Kills 30 Follower Combat Kills 57 Registered with UFD 300 Met Optimus in HQ 500 Met Warlord at Base 500 MAIN.C Attacked Warlord 500 Warlord Defense Kills 30 Cogmind --------- Core Integrity 0/1600 Matter 252/300 Energy 99/100 System Corruption 17% Temperature Cool (9) Movement Core (50) Location -1/Access Parts ------- > --- POWER (3) -------- (None) > --- PROPULSION (8) --- (None) > --- UTILITY (12) ----- Advanced Signal Interpreter Experimental Signal Interpreter Advanced Target Analyzer > --- WEAPON (2) ------- (None) > --- INVENTORY (5) ---- Force Lance Peak State ------------ > --- POWER ------------ Light Antimatter Reactor > --- PROPULSION ------- Field Propulsion Drive Field Propulsion Array Impulse Thruster Array Impulse Thruster Array > --- UTILITY ---------- Advanced Visual Processing Unit Advanced Signal Interpreter Experimental Signal Interpreter Advanced Target Analyzer Advanced Target Analyzer Experimental Actuator Array Layered Medium Armor Plating > --- WEAPON ----------- Force Lance Enhanced Force Lance > --- INVENTORY -------- Biometal Heavy Treads Hardcell Cannon Fusion Bomb Launcher [Rating: 122] Favorites ----------- Power Light Ion Engine Engine Light Ion Engine Power Core Micro Nuclear Core Reactor Light Antimatter Reactor Propulsion Light Treads Treads Light Treads Hover Unit Improved Antigrav System Flight Unit Field Propulsion Drive Utility Medium Storage Unit Device Seismic Detector Storage Medium Storage Unit Processor Advanced Melee Analysis Suite Hackware Advanced Hacking Suite Protection Layered Medium Armor Plating Weapon Great Axe Energy Gun Medium Laser Energy Cannon Subdweller Beam Cannon Ballistic Gun Subdweller Machine Gun Ballistic Cannon Hardcell Cannon Launcher Fusion Bomb Launcher Impact Weapon Mace Slashing Weapon Great Axe Piercing Weapon Vortex Lance Build | -11 -10 -10 -8 -8 -6 -5 -4 -4 -4 -4 -3 -3 -2 -1 ------- Run | Yrd Mat Sub Rec Scr Fac Fac Fac Upp Upp War Pro Res Res Acc Slots Evolved 18 | . . . . . 8 2 2 . . . . 2 2 2 Power 2 | . . . . . . 1 . . . . . . 1 . Propulsion 6 | . . . . . 2 1 . . . . . 1 . 2 Utility 10 | . . . . . 6 . 2 . . . . 1 1 . Weapon . | . . . . . . . . . . . . . . . Parts Attached 100 | 7 1 6 1 6 17 12 10 . . 8 2 2 3 25 Power 12 | 1 . . . 1 2 3 1 . . . . . . 4 Engine 2 | 1 . . . . 1 . . . . . . . . . Core 5 | . . . . 1 1 3 . . . . . . . . Reactor 5 | . . . . . . . 1 . . . . . . 4 Propulsion 23 | 2 . 1 1 2 4 1 3 . . 1 1 . . 7 Treads 7 | 2 . 1 1 2 . . . . . . . . . 1 Leg . | . . . . . . . . . . . . . . . Wheel . | . . . . . . . . . . . . . . . Hover 1 | . . . . . . . . . . . 1 . . . Flight 15 | . . . . . 4 1 3 . . 1 . . . 6 Utility 44 | 2 1 3 . 1 8 7 5 . . 2 . 2 2 11 Device 20 | 1 . 2 . . 3 4 3 . . 1 . 1 . 5 Storage 3 | 1 1 . . 1 . . . . . . . . . . Processor 16 | . . . . . 5 2 2 . . 1 . . 1 5 Hackware 3 | . . . . . . 1 . . . . . 1 1 . Protection 2 | . . 1 . . . . . . . . . . . 1 Artifact . | . . . . . . . . . . . . . . . Weapon 21 | 2 . 2 . 2 3 1 1 . . 5 1 . 1 3 Energy Gun 2 | 1 . . . . . . . . . . 1 . . . Energy Cannon 1 | . . 1 . . . . . . . . . . . . Ballistic Gun 2 | 1 . 1 . . . . . . . . . . . . Ballistic Cannon 1 | . . . . . . . . . . . . . 1 . Launcher 2 | . . . . . . . . . . 1 . . . 1 Special Weapon . | . . . . . . . . . . . . . . . Impact Weapon 5 | . . . . 2 2 1 . . . . . . . . Slashing Weapon 4 | . . . . . 1 . 1 . . 2 . . . . Piercing Weapon 4 | . . . . . . . . . . 2 . . . 2 Special Melee Weapon . | . . . . . . . . . . . . . . . Unidentified Prototypes 10 | . . 2 . . 3 1 1 . . 2 . . . 1 Parts Lost 49 | . . . . . 5 1 2 1 . 13 1 1 3 22 Power 7 | . . . . . 1 . . . . 2 . . . 4 Propulsion 11 | . . . . . . . . . . 3 . 1 . 7 Utility 25 | . . . . . 4 1 2 1 . 6 1 . 2 8 Weapon 6 | . . . . . . . . . . 2 . . 1 3 Highest Loss Streak 14 | . . . . . 3 1 1 1 . 13 14 1 3 14 To Critical Strikes . | . . . . . . . . . . . . . . . Average Backups 5 | . 1 6 10 3 5 8 9 9 8 9 3 3 4 3 Power . | . 1 2 2 . . . . . . . . . . . Propulsion 1 | . . 1 2 . . . 2 3 3 2 . . . . Utility 2 | . . 1 3 2 3 5 5 5 4 5 3 3 2 . Weapon 1 | . . 1 3 . . 1 1 1 1 1 . . 1 2 Tool/Special . | . . . . . . . . . . . . . . . Unused Backups 20 | . . 3 . 8 1 1 2 . . 2 . . 2 1 Power 4 | . . 2 . 2 . . . . . . . . . . Propulsion 5 | . . . . 2 1 . . . . 2 . . . . Utility 6 | . . 1 . 1 . 1 . . . . . . 2 1 Weapon 4 | . . . . 3 . . 1 . . . . . . . Tool/Special 1 | . . . . . . . 1 . . . . . . . Average Slot Usage (%) 78 | . 100 99 99 82 65 94 95 93 94 86 11 19 15 35 Engine 5 | . 14 14 14 9 . . . . . . . . . . Core 3 | . . . . 4 5 10 6 5 5 4 . . . . Reactor 1 | . . . . . . . 3 5 5 4 . . . 2 Treads 14 | . 28 28 28 28 8 . . . . . . . . . Flight 7 | . . . . . 8 28 22 21 21 20 . . . 9 Device 13 | . 14 13 13 13 11 19 20 20 21 17 5 6 4 4 Storage 8 | . 14 14 14 14 6 5 5 5 5 4 . . . . Processor 7 | . . . . . 11 18 20 21 21 20 . . 2 10 Hackware 1 | . . . . . . 1 5 5 5 4 . 3 4 . Energy Gun 1 | . 14 3 . . . . . . . . 3 4 3 . Energy Cannon 2 | . . 10 14 2 . . . . . . . . . . Ballistic Gun 4 | . 14 13 14 2 . . . . . . . . . . Impact Weapon 2 | . . . . 7 10 1 . . . . . . . . Slashing Weapon 2 | . . . . . . 5 9 10 10 5 . . . . Peak Build Rating 122 | 7 7 18 14 19 56 73 91 90 89 120 20 28 24 122 Average Rating 41 | 5 7 10 13 12 33 67 89 89 88 107 16 25 17 78 On Entrance 33 | . 7 7 13 14 19 55 72 90 88 89 7 20 21 3 Avg Prop Armor Cover (%) 18 | . . . . . . . . . . 17 . 12 . 19 Naked Turns 19 | . . . . . . . . . . . . . 9 10 Heaviest Build 42 | 13 18 28 26 26 24 38 38 38 38 42 3 8 8 39 Greatest Support 75 | 40 40 40 40 40 40 47 48 48 50 58 12 12 3 75 Greatest Overweight (x) 4 | . . . . . 4 1 1 . . 4 . 2 2 1 Average Overweight (x) . | . . . . . . . . . . . . . 1 . Largest Inventory Capacity 10 | 8 10 10 10 10 10 10 10 10 10 10 5 5 5 5 Average Capacity 9 | 7 8 10 10 10 10 10 10 10 10 9 5 5 5 5 Most Carried 10 | 1 2 10 10 10 10 10 10 9 9 10 4 4 5 5 Average Carried 5 | . 1 6 9 3 5 8 9 8 8 9 3 3 4 3 Final Capacity 10 | 8 10 10 10 10 10 10 10 10 10 5 5 5 5 5 Final Carried 10 | 1 1 10 10 6 8 10 9 8 9 4 3 4 5 1 Class Distribution -------------------- 63% | Mutant 9% | Sprinter 7% | Commander-Sprinter 4% | Ninja 4% | Infiltrator-Sprinter 4% | Derelict-Gladiator Dominant Class ---------------- Mutant | -10/Materials Mutant | -10/Subcaves Mutant | -8/Recycling Mutant | -8/Scraptown Derelict-Gladiator | -6/Factory Sprinter | -5/Factory Infiltrator-Sprinter | -4/Factory Ninja | -4/Upper Caves Sprinter | -4/Upper Caves Commander-Sprinter | -4/Warlord Mutant | -3/Proximity Caves Mutant | -3/Research Mutant | -2/Research Mutant | -1/Access Resources | -11 -10 -10 -8 -8 -6 -5 -4 -4 -4 -4 -3 -3 -2 -1 ----------- Run | Yrd Mat Sub Rec Scr Fac Fac Fac Upp Upp War Pro Res Res Acc Matter Collected 1913 | 291 87 144 . 96 77 343 120 40 10 110 49 20 10 516 Remotely . | . . . . . . . . . . . . . . . Salvage Created 2646 | 123 312 205 . . 313 408 300 . . 4 . 90 . 891 Parts 114 | 4 16 16 . . 10 15 12 . . 1 . . . 40 Haulers Intercepted 8 | . 1 . . . 1 3 1 . . . . 1 . 1 Recyclers Shooed 2 | . 1 . . . . . . . . . . . . 1 Parts Field Recycled . | . . . . . . . . . . . . . . . Retrieved Matter . | . . . . . . . . . . . . . . . Parts Self-Destructed 22 | . . 21 . . . . . . . . 1 . . . Prevented 4 | . . . . . . . . . . . 4 . . . Parts Restored . | . . . . . . . . . . . . . . . Kills | -11 -10 -10 -8 -8 -6 -5 -4 -4 -4 -4 -3 -3 -2 -1 ------- Run | Yrd Mat Sub Rec Scr Fac Fac Fac Upp Upp War Pro Res Res Acc Combat Hostiles Destroyed 31 | . 5 4 . . 5 1 2 . . 1 . . . 13 Melee 10 | . . . . . 3 1 2 . . . . . . 4 Guns 7 | . 5 2 . . . . . . . . . . . . Cannons 5 | . . 2 . . . . . . . . . . . 3 AOE 7 | . . . . . . . . . . 1 . . . 6 Classes Destroyed 14 | 2 3 3 . . 1 . 1 . . 1 . . . 3 Worker 1 | . . . . . . . . . . . . . . 1 Builder 1 | . . . . . . . . . . . . . . 1 Tunneler 2 | 1 . . . . . 1 . . . . . . . . Hauler 8 | . 1 . . . 1 3 1 . . . . 1 . 1 Recycler 4 | 1 1 . . . . . . . . . . . . 2 Turret 2 | . . 2 . . . . . . . . . . . . Watcher 6 | . 1 . . . 1 2 1 . . . . . . 1 Swarmer 13 | . . . . . 3 1 . . . . . . . 9 Saboteur 1 | . . . . . . . . . . 1 . . . . Grunt 7 | . 5 . . . 2 . . . . . . . . . Sentry 2 | . . 1 . . . . 1 . . . . . . . Hunter 2 | . . . . . . . . . . . . . . 2 Programmer 3 | . . . . . . . 1 . . . . . . 2 Subdweller 3 | . . 3 . . . . . . . . . . . . Best Kill Streak 6 | 2 3 2 . . 4 4 1 . . 1 . 1 . 6 Combat Bots Only 4 | . 2 2 . . 3 1 1 . . 1 . . . 4 Max Kills in Single Turn 2 | 1 2 1 . . 1 1 1 . . 1 . 1 . 2 Gunslinging . | . . . . . . . . . . . . . . . Exploded 2 | . . . . . . . . . . 1 . . . 2 Melee 1 | . . . . . 1 1 1 . . . . . . 1 Uniques/NPCs Destroyed . | . . . . . . . . . . . . . . . Combat | -11 -10 -10 -8 -8 -6 -5 -4 -4 -4 -4 -3 -3 -2 -1 -------- Run | Yrd Mat Sub Rec Scr Fac Fac Fac Upp Upp War Pro Res Res Acc Hostile Shots Fired 719 | . 17 31 . . 104 30 11 19 6 108 3 20 34 336 Missed 317 | . 5 12 . . 46 15 7 11 6 56 . 6 9 144 Hits 402 | . 12 19 . . 58 15 4 8 . 52 3 14 25 192 Melee 16 | . . . . . . . . . . 4 . . 12 . Projectile 386 | . 12 19 . . 58 15 4 8 . 48 3 14 13 192 AOE 3 | . . . . . . . 2 . . . . . 1 . Critical Strikes 22 | . . 1 . . 1 . . . . 6 . 3 3 8 Part Disruptions 2 | . . . . . . . . . . . . . . 2 Damage Taken 8899 | . 178 302 . . 749 255 257 161 . 1306 97 284 936 4374 Core 3772 | . . 36 . . 244 114 137 19 . 565 77 79 896 1605 Absorbed by Shields 63 | . . . . . . . . . . 63 . . . . Regen/Repaired (Parts) 105 | . . . . . . . . . . 105 . . . . Core Remaining (%) 72 | 100 . . . 85 71 88 . . . . 30 93 38 . Volleys Fired 85 | 7 29 19 . . . . . . . 1 . 9 2 18 Largest 2 | 2 2 2 . . . . . . . 1 . 1 1 1 Hottest 110 | 70 70 110 . . . . . . . 49 . 50 55 55 Shots Fired 139 | 14 58 38 . . . . . . . 1 . 9 2 17 Gun 110 | 14 58 28 . . . . . . . . . 9 1 . Cannon 22 | . . 10 . . . . . . . . . . 1 11 Launcher 7 | . . . . . . . . . . 1 . . . 6 Special . | . . . . . . . . . . . . . . . Kinetic 67 | 7 29 19 . . . . . . . . . . 1 11 Thermal 65 | 7 29 19 . . . . . . . . . 9 1 . Explosive 7 | . . . . . . . . . . 1 . . . 6 Electromagnetic . | . . . . . . . . . . . . . . . Robot Hit Streak 10 | 5 10 8 . . . . . . . 4 . 7 6 3 Robot Miss Streak 8 | 1 8 1 . . . . . . . . . 1 . 6 Penetration Max . | . . . . . . . . . . . . . . . Secondary Targets . | . . . . . . . . . . . . . . . Shots Hit Robots 134 | 10 32 21 . . 19 8 14 . . 1 . 8 1 20 Core Hits 72 | 3 14 9 . . 6 6 6 . . 5 . 1 1 21 Critical Kills 2 | . . . . . 2 . . . . . . . . . Critical Parts Destroyed 3 | . . 1 . . 2 . . . . . . . . . Critical Strikes 16 | . 1 1 . . 4 . 3 . . . . 2 . 5 Burn 3 | . 1 . . . . . . . . . . 2 . . Destroy 1 | . . 1 . . . . . . . . . . . . Blast 1 | . . . . . . . . . . . . . . 1 Smash 4 | . . . . . 4 . . . . . . . . . Sever 3 | . . . . . . . 3 . . . . . . . Impale 4 | . . . . . . . . . . . . . . 4 Melee Attacks 126 | . . . . . 25 12 40 . 1 4 . . . 44 Impact 24 | . . . . . 24 . . . . . . . . . Slashing 58 | . . . . . 1 12 40 . 1 4 . . . . Piercing 44 | . . . . . . . . . . . . . . 44 Sneak Attacks 16 | . . . . . 1 5 3 . . . . . . 7 Combat Hostiles 4 | . . . . . . . 2 . . . . . . 2 Follow-up Attacks 6 | . . . . . 2 . 3 . . . . . . 1 Damage Inflicted 6718 | 121 830 369 . . 840 605 796 . . 757 . 140 16 2244 Guns 889 | 121 388 224 . . . . . . . . . 140 16 . Cannons 351 | . . 145 . . . . . . . . . . . 206 Explosions 2179 | . 442 . . . . . . . . 757 . . . 980 Melee 3299 | . . . . . 840 605 796 . . . . . . 1058 Ramming . | . . . . . . . . . . . . . . . Kinetic 593 | 59 178 150 . . . . . . . . . . . 206 Thermal 647 | 62 210 219 . . . . . . . . . 140 16 . Explosive 2179 | . 442 . . . . . . . . 757 . . . 980 Electromagnetic . | . . . . . . . . . . . . . . . Impact 840 | . . . . . 840 . . . . . . . . . Slashing 1401 | . . . . . . 605 796 . . . . . . . Piercing 1058 | . . . . . . . . . . . . . . 1058 Highest Corruption 17 | . 1 1 3 . . . . . . 3 3 . 2 17 Average Corruption 2 | . 1 1 1 . . . . . . 2 3 . 2 8 Corruption Purged . | . . . . . . . . . . . . . . . Corruption Blocked . | . . . . . . . . . . . . . . . Effects 33 | . 1 8 6 . . . . . . 1 6 . . 11 Message Errors 7 | . . 2 1 . . . . . . . 2 . . 2 Matter Fused 6 | . . 1 2 . . . . . . 1 . . . 2 Heat Flow Errors 5 | . . 2 . . . . . . . . 1 . . 2 Energy Discharges 2 | . . . 1 . . . . . . . . . . 1 Parts Rejected 1 | . . . 1 . . . . . . . . . . . Parts Fused 3 | . . . . . . . . . . . 1 . . 2 Data Loss (minor) 2 | . . 1 . . . . . . . . 1 . . . Data Loss (major) 6 | . 1 2 1 . . . . . . . 1 . . 1 Weapon Failures 1 | . . . . . . . . . . . . . . 1 Overload Shots . | . . . . . . . . . . . . . . . Overflow Damage 866 | . 147 . . . 115 79 63 . . 43 . . . 419 Projectiles 11 | . . . . . . . . . . . . . . 11 Explosions 314 | . 147 . . . . . . . . 43 . . . 124 Melee 541 | . . . . . 115 79 63 . . . . . . 284 Knockbacks 5 | . . . . . 4 . . . . . . . . 1 Impact 4 | . . . . . 4 . . . . . . . . . Kinetic 1 | . . . . . . . . . . . . . . 1 Secondary . | . . . . . . . . . . . . . . . Self-Inflicted Damage 257 | . 45 . . . . . . . . 59 . . . 153 Shots 4 | . 1 . . . . . . . . 1 . . . 2 Rammed . | . . . . . . . . . . . . . . . Targets Rammed . | . . . . . . . . . . . . . . . Kicked . | . . . . . . . . . . . . . . . Crushed . | . . . . . . . . . . . . . . . Highest Temperature 279 | 36 69 242 . . 5 195 5 . . 47 175 . . 279 Average Temperature 39 | 17 22 71 . . 5 55 4 . . 11 100 . . 136 Received Heat Transfer 726 | . 72 57 . . 204 9 42 . . 206 9 73 18 36 Siege Activations . | . . . . . . . . . . . . . . . Martial Activations . | . . . . . . . . . . . . . . . Shielding Activations . | . . . . . . . . . . . . . . . Robots Disrupted . | . . . . . . . . . . . . . . . Combat Hostiles . | . . . . . . . . . . . . . . . Robots Corrupted 2 | . . . . . 2 . . . . . . . . . Combat Hostiles 2 | . . . . . 2 . . . . . . . . . Parts Fried . | . . . . . . . . . . . . . . . Impact Corruptions 5 | . . . . . 5 . . . . . . . . . Robots Melted 1 | . . . . . . . . . . . . 1 . . Combat Hostiles . | . . . . . . . . . . . . . . . Parts Melted 3 | . 1 . . . . . . . . . . 2 . . Heat Transferred 1776 | 185 703 407 . . . . . . . . . 444 37 . Parts Sabotaged 7 | . . . . . . . . . . 7 . . . . Parts Stolen . | . . . . . . . . . . . . . . . Parts Stripped . | . . . . . . . . . . . . . . . Power Chain Reactions . | . . . . . . . . . . . . . . . Alert | -11 -10 -10 -8 -8 -6 -5 -4 -4 -4 -4 -3 -3 -2 -1 ------- Run | Yrd Mat Sub Rec Scr Fac Fac Fac Upp Upp War Pro Res Res Acc Maximum Alert Level 2 | . . . . . . . . . . . . . . 2 Low Security (%) 90 | 100 100 . 100 . 100 100 100 . . . . 100 100 60 Level 1 7 | . . . . . . . . . . . . . . 31 Level 2 1 | . . . . . . . . . . . . . . 8 Level 3 . | . . . . . . . . . . . . . . . Level 4 . | . . . . . . . . . . . . . . . Level 5 . | . . . . . . . . . . . . . . . High Security . | . . . . . . . . . . . . . . . Max Security . | . . . . . . . . . . . . . . . Peak Influence 510 | 5 79 . 20 . 92 36 42 . . . . 14 3 510 Initial 21 | . . . 20 . . 21 2 . . . . . . . Average 47 | . 24 . 1 . 16 11 7 . . . . 2 . 172 Influence Increases 2091 | 10 191 168 17 . 214 106 190 . . 48 59 22 3 1063 Destroy 0b10 Robot/C 740 | . 100 140 . . 100 20 40 . . 40 40 . . 260 Destroy 0b10 Robot/NC 110 | 10 15 . . . 10 30 10 . . . . 5 . 30 Destroy Leader 128 | . 24 10 . . 14 10 24 . . . . 2 . 44 Allied During Kill 16 | . . 3 . . . . . . . 8 4 1 . . Successful Hack 150 | . 14 . 17 . 14 12 31 . . . . 14 . 48 Disable Machine 135 | . 15 . . . . 15 . . . . . . . 105 Destroy Structure 197 | . 23 . . . 1 4 40 . . . . . 3 126 Partial Spotted 135 | . . . . . 30 15 45 . . . . . . 45 Lose Combat Pursuer 480 | . . 15 . . 45 . . . . . 15 . . 405 Influence Decreases 1589 | 10 144 172 60 . 169 144 197 . . 48 59 22 3 561 Entered New Map 75 | . . 23 23 . . 24 5 . . . . . . . Time Decay 1073 | 10 144 96 37 . 119 110 172 . . . 19 22 3 341 Lost Part 320 | . . . . . 50 10 20 . . 20 . . . 220 Lost Ally 121 | . . 53 . . . . . . . 28 40 . . . Squads Dispatched 24 | . 2 . . . 3 4 5 . . . . 2 1 7 Investigation 8 | . . . . . . 3 4 . . . . . . 1 Extermination 7 | . . . . . 1 1 1 . . . . . . 4 Reinforcement 9 | . 2 . . . 2 . . . . . . 2 1 2 Assault . | . . . . . . . . . . . . . . . Garrison . | . . . . . . . . . . . . . . . Intercept . | . . . . . . . . . . . . . . . Searches Triggered . | . . . . . . . . . . . . . . . Construction Impeded . | . . . . . . . . . . . . . . . Haulers Reinforced . | . . . . . . . . . . . . . . . Active Scanning Responses . | . . . . . . . . . . . . . . . Cargo Convoy Interrupts . | . . . . . . . . . . . . . . . Stealth | -11 -10 -10 -8 -8 -6 -5 -4 -4 -4 -4 -3 -3 -2 -1 --------- Run | Yrd Mat Sub Rec Scr Fac Fac Fac Upp Upp War Pro Res Res Acc Distress Signals 8 | . . . . . 2 1 . . . 2 . . 1 2 Communications Jammed . | . . . . . . . . . . . . . . . Distress Signals . | . . . . . . . . . . . . . . . Times Spotted 218 | . 12 9 . . 16 31 9 9 3 45 1 3 8 72 Peak Tracking Total 24 | . 3 2 . . 7 14 4 4 3 24 1 4 8 24 Tactical Retreats 31 | . . 1 . . 2 7 1 4 1 4 1 . . 10 ECM-based Alert Blocks 50 | . . . . . . 22 4 9 3 12 . . . . Traps | -11 -10 -10 -8 -8 -6 -5 -4 -4 -4 -4 -3 -3 -2 -1 ------- Run | Yrd Mat Sub Rec Scr Fac Fac Fac Upp Upp War Pro Res Res Acc Traps Triggered 6 | . 1 . . . . 3 . . . . . . 1 1 Indirectly . | . . . . . . . . . . . . . . . Trap Hack Attempts . | . . . . . . . . . . . . . . . Triggered . | . . . . . . . . . . . . . . . Disarmed . | . . . . . . . . . . . . . . . Reprogrammed . | . . . . . . . . . . . . . . . Reused . | . . . . . . . . . . . . . . . Traps Extracted . | . . . . . . . . . . . . . . . Installed 1 | . . . . . . . . . . . 1 . . . Triggered . | . . . . . . . . . . . . . . . Most Traps Carried 1 | . . . . . . . . . . . 1 . . . Machines | -11 -10 -10 -8 -8 -6 -5 -4 -4 -4 -4 -3 -3 -2 -1 ---------- Run | Yrd Mat Sub Rec Scr Fac Fac Fac Upp Upp War Pro Res Res Acc Machines Disabled 12 | . 1 3 . . . 1 . . . . . . . 7 Max in Single Turn 1 | . 1 1 . . . 1 . . . . . . . 1 Machines Repaired . | . . . . . . . . . . . . . . . Machines Dismantled . | . . . . . . . . . . . . . . . Machines Sabotaged . | . . . . . . . . . . . . . . . Overloaded Fab Kills . | . . . . . . . . . . . . . . . Hacking | -11 -10 -10 -8 -8 -6 -5 -4 -4 -4 -4 -3 -3 -2 -1 --------- Run | Yrd Mat Sub Rec Scr Fac Fac Fac Upp Upp War Pro Res Res Acc Machines Accessed 50 | . 2 1 8 6 4 7 10 . 1 3 . 1 . 7 Terminals 18 | . 1 . 3 . 2 2 5 . . . . 1 . 4 Fabricators 1 | . . . . . 1 . . . . . . . . . Repair Stations 2 | . . . . . 1 . . . . . . . . 1 Recycling Units 13 | . 1 . 5 . . 3 4 . . . . . . . Scanalyzers 2 | . . . . . . 1 1 . . . . . . . Garrison Access 3 | . . . . . . 1 . . . . . . . 2 Total Hacks 131 | . 5 9 22 33 7 8 21 . 1 7 . 3 . 15 Successful 84 | . 3 9 8 33 2 4 13 . 1 7 . 1 . 3 Failed 47 | . 2 . 14 . 5 4 8 . . . . 2 . 12 Catastrophic 8 | . 1 . . . . 3 1 . . . . . . 3 Database Lockouts . | . . . . . . . . . . . . . . . Manual 54 | . 2 . 13 . 6 5 17 . . . . 3 . 8 Terminals 42 | . 2 . 11 . 4 2 12 . . . . 3 . 8 Fabricators 2 | . . . . . 2 . . . . . . . . . Repair Stations 5 | . . . . . 1 . . . . . . . . 4 Recycling Units 22 | . 3 . 11 . . 3 5 . . . . . . . Scanalyzers 6 | . . . . . . 2 4 . . . . . . . Garrison Access 4 | . . . . . . 1 . . . . . . . 3 Terminal Hacks 58 | . 1 9 1 33 1 . 5 . 1 7 . . . . Record 42 | . . 8 . 32 . . . . . 2 . . . . Prototype ID Bank 4 | . . . . . . . . . . 4 . . . . Open Door 2 | . . . . . . . . . 1 1 . . . . Branch Access Points 1 | . . . . . . . 1 . . . . . . . Emergency Access Points 1 | . . . . . . . 1 . . . . . . . Zone Layout 6 | . 1 . 1 . 1 . 3 . . . . . . . Proto ID Catalog 2 | . . 1 . 1 . . . . . . . . . . Fabricator Hacks . | . . . . . . . . . . . . . . . Repair Station Hacks 2 | . . . . . . . . . . . . . . 2 Scan Component 1 | . . . . . . . . . . . . . . 1 Refit 1 | . . . . . . . . . . . . . . 1 Recycling Unit Hacks 5 | . 1 . 4 . . . . . . . . . . . Report Inventory 1 | . 1 . . . . . . . . . . . . . Retrieve Components 4 | . . . 4 . . . . . . . . . . . Scanalyzer 3 | . . . . . . 1 2 . . . . . . . Retrieve Study 3 | . . . . . . 1 2 . . . . . . . Garrison Access Hacks . | . . . . . . . . . . . . . . . Unauthorized Hacks 16 | . 1 . 3 . 1 3 6 . . . . 1 . 1 Terminals 6 | . . . 2 . . . 2 . . . . 1 . 1 Botnet 6 | . . . 2 . . . 2 . . . . 1 . 1 Fabricators 1 | . . . . . 1 . . . . . . . . . Liberate 1 | . . . . . 1 . . . . . . . . . Repair Stations . | . . . . . . . . . . . . . . . Recycling Units 9 | . 1 . 1 . . 3 4 . . . . . . . Recyclers 2 | . 1 . 1 . . . . . . . . . . . Fedlink 7 | . . . . . . 3 4 . . . . . . . Scanalyzers . | . . . . . . . . . . . . . . . Garrison Access . | . . . . . . . . . . . . . . . Data Cores Recovered . | . . . . . . . . . . . . . . . Used . | . . . . . . . . . . . . . . . Hacking Detections 30 | . 2 . 6 . 3 4 7 . . . . 1 . 7 Full Trace Events 4 | . 1 . 2 . . . . . . . . . . 1 Feedback Events 2 | . . . 2 . . . . . . . . . . . Corruption 2 | . . . 2 . . . . . . . . . . . Feedback Blocked . | . . . . . . . . . . . . . . . Robot Schematics Acquired . | . . . . . . . . . . . . . . . Robots Built . | . . . . . . . . . . . . . . . Authchips . | . . . . . . . . . . . . . . . Time . | . . . . . . . . . . . . . . . Total Robot Build Rating . | . . . . . . . . . . . . . . . Part Schematics Acquired . | . . . . . . . . . . . . . . . Parts Built . | . . . . . . . . . . . . . . . Authchips . | . . . . . . . . . . . . . . . Time . | . . . . . . . . . . . . . . . Total Part Build Rating . | . . . . . . . . . . . . . . . Part Studies Acquired 3 | . . . . . . 1 2 . . . . . . . Parts Repaired . | . . . . . . . . . . . . . . . Time . | . . . . . . . . . . . . . . . Parts Recycled . | . . . . . . . . . . . . . . . Recycled Matter . | . . . . . . . . . . . . . . . Retrieved Matter . | . . . . . . . . . . . . . . . Retrieved Components 5 | . . . 5 . . . . . . . . . . . Parts Scanalyzed . | . . . . . . . . . . . . . . . Part Schematics Acquired . | . . . . . . . . . . . . . . . Parts Damaged . | . . . . . . . . . . . . . . . Bothacking | -11 -10 -10 -8 -8 -6 -5 -4 -4 -4 -4 -3 -3 -2 -1 ------------ Run | Yrd Mat Sub Rec Scr Fac Fac Fac Upp Upp War Pro Res Res Acc Used RIF Installer . | . . . . . . . . . . . . . . . Robots Hacked . | . . . . . . . . . . . . . . . Non-combat . | . . . . . . . . . . . . . . . Combat . | . . . . . . . . . . . . . . . Robot Hacks Applied . | . . . . . . . . . . . . . . . Relay Couplers Released . | . . . . . . . . . . . . . . . Fabnet Peak Effective % . | . . . . . . . . . . . . . . . Robots Rewired 5 | . . . . . . . . . . 5 . . . . Allies Hacked . | . . . . . . . . . . . . . . . Hacks Repelled . | . . . . . . . . . . . . . . . Allies | -11 -10 -10 -8 -8 -6 -5 -4 -4 -4 -4 -3 -3 -2 -1 -------- Run | Yrd Mat Sub Rec Scr Fac Fac Fac Upp Upp War Pro Res Res Acc Total Allies 12 | . . 3 . . . . . . . 5 2 2 . . Largest Group 5 | . . 3 . . . . . . . 5 2 2 . . Highest-Rated Group 283 | . . 57 . . . . . . . 283 162 162 . . Highest-Rated Ally 81 | . . 19 . . . . . . . 64 81 81 . . Initial UFD Resources 75 | . . . . . 23 27 46 64 64 64 68 68 71 75 Total Orders . | . . . . . . . . . . . . . . . Ally Attacks 31 | . . 13 . . . . . . . 12 6 . . . Total Damage 571 | . . 163 . . . . . . . 247 161 . . . Kills 7 | . . 4 . . . . . . . 1 2 . . . Allies Corrupted . | . . . . . . . . . . . . . . . Allies Melted . | . . . . . . . . . . . . . . . Intel | -11 -10 -10 -8 -8 -6 -5 -4 -4 -4 -4 -3 -3 -2 -1 ------- Run | Yrd Mat Sub Rec Scr Fac Fac Fac Upp Upp War Pro Res Res Acc Active Infowar (turns) 8026 | 42 492 842 488 2206 607 313 627 360 245 1010 . . . 794 Optics 262 | . . . . . . . . . . . . . . 262 Sensors 1355 | . . . . . . . 626 347 . . . . . 382 Terrain 2434 | . . . . . 468 169 184 360 245 1008 . . . . Seismic 6733 | 42 492 842 488 2206 595 274 61 4 245 1010 . . . 474 Cloaking 1 | . . . . . . 1 . . . . . . . . Jamming 289 | . . . . . . . 289 . . . . . . . ECM 2041 | . . . . . 12 278 141 360 245 1005 . . . . Robot Analysis Total . | . . . . . . . . . . . . . . . Derelict Logs Recovered 10 | . . 3 . 5 . . . 1 1 . . . . . Drone Launches . | . . . . . . . . . . . . . . . Drone Recoveries . | . . . . . . . . . . . . . . . Exploration | -11 -10 -10 -8 -8 -6 -5 -4 -4 -4 -4 -3 -3 -2 -1 ------------- Run | Yrd Mat Sub Rec Scr Fac Fac Fac Upp Upp War Pro Res Res Acc Turns Passed 9623 | 117 492 1466 489 2212 617 338 627 360 245 1031 333 153 240 903 Spaces Moved 9435 | 49 244 843 296 1300 504 786 1148 804 611 795 363 144 167 1381 Core 602 | 3 . . . . . . . . . 29 251 47 167 105 Treads 2950 | 46 244 843 296 1300 211 . . . . . . . . 10 Legs . | . . . . . . . . . . . . . . . Wheels . | . . . . . . . . . . . . . . . Hover 209 | . . . . . . . . . . . 112 97 . . Flight 5674 | . . . . . 293 786 1148 804 611 766 . . . 1266 Fastest Speed 5 | 50 160 160 160 165 26 5 23 32 28 25 50 50 50 33 Average Speed 77 | 153 160 160 163 168 89 26 29 32 31 32 53 85 118 42 Slowest Speed 295 | 160 160 160 165 170 295 91 110 32 32 250 60 150 150 145 Overloaded Moves 64 | . . . . . . 16 7 . 8 33 . . . . Propulsion Burnouts . | . . . . . . . . . . . . . . . Robots Hopped 38 | . . . . . . 10 1 . 1 1 . . . 25 Potential Cave-ins . | . . . . . . . . . . . . . . . Cave-ins Triggered . | . . . . . . . . . . . . . . . Exploration Rate (%) 44 | 4 35 44 71 91 16 28 31 79 60 81 69 4 8 45 Regions Visited 14 Branch Regions 7 Pre-discovered Areas 8 | . . 2 . 5 . 1 . . . . . . . . Known Exits Taken 5 | . . . . . 1 . 1 1 1 . 1 . . . Unknown Exits Taken 9 | 1 1 1 1 1 . 1 . . . 1 . 1 1 . Scrap Searched 17 | . . 5 . 7 . . . 1 2 . 2 . . . Spaces Dug 38 | . . . . . 1 2 20 . 1 . . . 1 13 Terrain Destroyed 123 | . 27 . . . 1 2 20 . 1 22 . . 1 49 Melee 37 | . . . . . 1 2 20 . 1 . . . . 13 Projectile 3 | . . . . . . . . . . . . . 1 2 AOE 83 | . 27 . . . . . . . . 22 . . . 34 Terrain Rammed . | . . . . . . . . . . . . . . . Walls Destroyed . | . . . . . . . . . . . . . . . Machines Disabled . | . . . . . . . . . . . . . . . Actions | -11 -10 -10 -8 -8 -6 -5 -4 -4 -4 -4 -3 -3 -2 -1 --------- Run | Yrd Mat Sub Rec Scr Fac Fac Fac Upp Upp War Pro Res Res Acc Total 11363 | 74 288 927 301 1333 631 882 1371 906 657 1563 502 164 205 1559 Wait 1432 | 11 14 31 . . 56 52 158 102 46 715 134 8 24 81 Move 9353 | 48 243 842 295 1299 503 765 1145 803 608 792 362 143 166 1339 Hop 30 | . . . . . . 10 1 . 1 1 . . . 17 Pick Up 53 | 1 . 13 1 7 8 7 5 . 1 2 1 2 3 2 Fast Attach 84 | 7 . 5 1 2 12 16 6 . . 6 2 1 5 21 Attach 58 | . . 2 1 3 10 5 7 1 . 6 1 1 1 20 Detach 55 | . . 5 . 4 11 8 5 . . 5 . . 1 16 Swap 7 | . 1 1 1 3 1 . . . . . . . . . Drop 62 | . 1 9 2 15 8 7 7 . . 6 1 . 3 3 Fire 85 | 7 29 19 . . . . . . . 1 . 9 2 18 Melee 118 | . . . . . 22 12 37 . 1 4 . . . 42 Ram . | . . . . . . . . . . . . . . . Kick . | . . . . . . . . . . . . . . . Crush . | . . . . . . . . . . . . . . . Escape Stasis . | . . . . . . . . . . . . . . . Rewire 25 | . . . . . . . . . . 25 . . . . Trap 1 | . . . . . . . . . . . 1 . . . Miscellaneous . | . . . . . . . . . . . . . . . Route ------- -11/Scrapyard -10/Materials (discovered 2 exits: [*Min] / *Sub) -10/Subcaves (discovered 2 exits: [*Mat] / *Rec) -8/Recycling -8/Scraptown (discovered 2 exits: *Fac x2) -6/Factory (discovered 2 exits: *Fac x2) -5/Factory (discovered 3 exits: *Fac / [*Upp] / [*Ext]) -4/Factory (discovered 3 exits: *Res / *Upp x2) -4/Upper Caves -4/Upper Caves (discovered 2 exits: *Res / *War) -4/Warlord -3/Proximity Caves -3/Research -2/Research -1/Access History --------- Turn | Location | Event 23 | -11/Scrapyard | Discovered new exit (range 16) 118 | -11/Scrapyard | Entered Materials 264 | -10/Materials | Discovered new exit (range 15) 309 | -10/Materials | Build established: Mutant 601 | -10/Materials | Discovered new exit (range 7) 610 | -10/Materials | Entered Subcaves 625 | -10/Subcaves | Learned Materials emergency access door positions 719 | -10/Subcaves | A swath of the cavern ceiling suddenly collapsed 767 | -10/Subcaves | Learned location of Mines (-10) 783 | -10/Subcaves | A swath of the cavern ceiling suddenly collapsed 934 | -10/Subcaves | Shifting Twisted Machinery released Battle Rifle 935 | -10/Subcaves | Shifting Twisted Machinery released Sub. Beam Cannon 1133 | -10/Subcaves | Learned location of 1 exit from Materials 1166 | -10/Subcaves | Learned location of Zion (-6) 1166 | -10/Subcaves | Met a Zionite searching for "candidates" 1189 | -10/Subcaves | Discovered new exit (range 5) 1230 | -10/Subcaves | Disturbed a concealed Subdweller 1448 | -10/Subcaves | Visited triangular shrine 1459 | -10/Subcaves | Found Prototype Device 1459 | -10/Subcaves | Identified V3-11A's Pendant 1464 | -10/Subcaves | Befriended Subdweller 1618 | -10/Subcaves | Visited 4L-MR0's lab 1632 | -10/Subcaves | Found Prototype Device 1632 | -10/Subcaves | Identified Sfc. Transmogrifier 1645 | -10/Subcaves | Found Rainbow Chip 1953 | -10/Subcaves | Shifting Twisted Machinery released Sub. Machine Gun 1962 | -10/Subcaves | Shifting Twisted Machinery released Flamer 1969 | -10/Subcaves | Ambushed by Subdwellers from Twisted Machinery 1973 | -10/Subcaves | Befriended Subdweller 1973 | -10/Subcaves | Befriended Subdweller 2026 | -10/Subcaves | Lost 3 allies 2044 | -10/Subcaves | Discovered new exit (range 16) 2076 | -10/Subcaves | Entered Recycling 2524 | -8/Recycling | Scanned before Scraplab entrance 2547 | -8/Recycling | Entered Scraplab 2562 | -8/Recycling | Discovered new exit (range 3) 2565 | -8/Recycling | Entered Scraptown 2565 | -8/Scraptown | System corruption cleaned by C-Scrubber 2607 | -8/Scraptown | Heard Great Nut preacher, LISTEN AND RECITE! 2645 | -8/Scraptown | Delivered V3-11A's Pendant to T0-NE2 in exchange for information 2836 | -8/Scraptown | Discovered new exit (range 11) 2872 | -8/Scraptown | Scanned Subdweller tech in exchange for log data 2876 | -8/Scraptown | Learned Research trap positions 2877 | -8/Scraptown | Learned location of Warlord (-4) 2879 | -8/Scraptown | Learned location of 1 exit from Factory 2881 | -8/Scraptown | Learned location of Testing (-3) 2882 | -8/Scraptown | Learned location of Quarantine (-2) 3015 | -8/Scraptown | Visited Red Mages 3068 | -8/Scraptown | Visited Awakened 3081 | -8/Scraptown | Visited Symbiants 3140 | -8/Scraptown | Visited Cyclists 3181 | -8/Scraptown | Visited UFD Registry 3181 | -8/Scraptown | Registered with UFD as "Wireshell" 3228 | -8/Scraptown | Entered Cyclist Reading Room 3346 | -8/Scraptown | Visited Bundlers 3414 | -8/Scraptown | Visited TADAMA 3838 | -8/Scraptown | Visited Science Guys 3898 | -8/Scraptown | Visited Curators Association 3969 | -8/Scraptown | Visited DA-N13 Charitable Foundation 3986 | -8/Scraptown | Found DCF Scrap (31 items) 4154 | -8/Scraptown | Visited Science Testing Area 4171 | -8/Scraptown | Visited Junk Repository 4250 | -8/Scraptown | Visited Supply Room 4291 | -8/Scraptown | Visited Scrap Suit Storage 4509 | -8/Scraptown | Visited Research Penetration Think Tank 4548 | -8/Scraptown | Visited Infowarlord's Domain 4560 | -8/Scraptown | Found Exp. Signal Interpreter 4678 | -8/Scraptown | Met Optimus 4678 | -8/Scraptown | Accepted into 0bPrime 4768 | -8/Scraptown | Discovered new exit (range 5) 4777 | -8/Scraptown | Entered Factory 4777 | -6/Factory | Evolved 8 slots: Propulsion x2, Utility x6 4778 | -6/Factory | Identified exit to Factory 5065 | -6/Factory | Build established: Derelict-Gladiator 5289 | -6/Factory | Lost 3 parts (1p2u) 5375 | -6/Factory | Discovered exit to Factory (range 16) 5394 | -6/Factory | Entered another Factory area 5394 | -5/Factory | Evolved 2 slots: Power x1, Propulsion x1 5563 | -5/Factory | Discovered new exit (range 8) 5574 | -5/Factory | Loaded intel: 8 recycling unit locations 5577 | -5/Factory | Discovered new exit (range 5) 5631 | -5/Factory | Discovered new exit (range 8) 5643 | -5/Factory | Learned location of Protoforge (-2) 5732 | -5/Factory | Entered another Factory area 5732 | -4/Factory | Evolved 2 slots: Utility x2 5866 | -4/Factory | Loaded intel: 8 recycling unit locations 6028 | -4/Factory | Build established: Infiltrator-Sprinter 6289 | -4/Factory | Identified exit to Upper Caves 6317 | -4/Factory | Discovered new exit (range 15) 6359 | -4/Factory | Entered Upper Caves 6638 | -4/Upper Caves | Build established: Ninja 6681 | -4/Upper Caves | Learned Research security intel 6716 | -4/Upper Caves | Discovered new exit (range 11) 6719 | -4/Upper Caves | Identified exit to Upper Caves 6719 | -4/Upper Caves | Entered another Upper Caves area 6765 | -4/Upper Caves | Discovered new exit (range 12) 6768 | -4/Upper Caves | Identified exit to Research 6855 | -4/Upper Caves | Prototype Device suddenly appears! 6856 | -4/Upper Caves | Found Prototype Device 6925 | -4/Upper Caves | Learned Research security intel 6962 | -4/Upper Caves | Discovered new exit (range 9) 6964 | -4/Upper Caves | Identified exit to Warlord 6964 | -4/Upper Caves | Entered Warlord 6975 | -4/Warlord | Discovered new exit (range 15) 7002 | -4/Warlord | Build established: Sprinter 7075 | -4/Warlord | Rebuked by Warlord 7078 | -4/Warlord | Identified Amulet of Y3-NDR 7100 | -4/Warlord | Warlord's base attacked by MAIN.C 7124 | -4/Warlord | Found Prototype Piercing Weapon 7124 | -4/Warlord | Identified Vortex Lance 7126 | -4/Warlord | Found Vortex Lance 7158 | -4/Warlord | Attached Rainbow Chip, gained temporary slots: Power, Propulsion, Utility, Weapon 7353 | -4/Warlord | Build established: Commander-Sprinter 7450 | -4/Warlord | Warlord forces counterattacked 7704 | -4/Warlord | Lost 3 allies 7775 | -4/Warlord | Warlord base infiltrated, sounded retreat 7780 | -4/Warlord | Spotted Executioner 7780 | -4/Warlord | Spotted Striker 7913 | -4/Warlord | Spotted Striker 7928 | -4/Warlord | Spotted Striker 7928 | -4/Warlord | Spotted B-90 Cyclops 7968 | -4/Warlord | Spotted Executioner 7970 | -4/Warlord | Spotted Striker 7974 | -4/Warlord | Spotted Striker 7980 | -4/Warlord | Lost 15 allies 7983 | -4/Warlord | Core integrity fell below 50% 7984 | -4/Warlord | Spotted B-86 Titan 7995 | -4/Warlord | Entered Proximity Caves 8005 | -3/Proximity Caves | Spotted B-86 Titan 8036 | -3/Proximity Caves | Lost 14 parts (2p3n7u2w) 8281 | -3/Proximity Caves | Build established: Mutant 8325 | -3/Proximity Caves | Discovered exit to Research (range 7) 8328 | -3/Proximity Caves | Entered Research 8328 | -3/Research | Evolved 2 slots: Propulsion x1, Utility x1 8329 | -3/Research | Loaded intel: 70 trap records 8385 | -3/Research | Joined by bewildered Wizard 8386 | -3/Research | Joined by bewildered Wizard 8448 | -3/Research | Discovered new exit (range 13) 8481 | -3/Research | Entered another Research area 8481 | -2/Research | Evolved 2 slots: Power x1, Utility x1 8505 | -2/Research | Found Fusion Bomb Launcher 8681 | -2/Research | Spotted B-90 Cyclops 8703 | -2/Research | Discovered new exit (range 15) 8721 | -2/Research | Core integrity fell below 50% 8721 | -2/Research | Entered Access 8721 | -1/Access | Evolved 2 slots: Propulsion x2 8735 | -1/Access | Lost 3 parts (2u1w) 9154 | -1/Access | Lost 5 parts (2p3u) 9374 | -1/Access | Lost 3 parts (1p1n1u) 9399 | -1/Access | Found Prototype Device 9399 | -1/Access | Identified Exp. Actuator Array 9494 | -1/Access | Spotted B-99 Colossus 9555 | -1/Access | Core integrity fell below 50% 9556 | -1/Access | System corruption reached 10% 9590 | -1/Access | Core integrity fell below 20% 9620 | -1/Access | Lost 14 parts (1p6n4u3w) 9624 | -1/Access | Destroyed by G-73 Enforcer with Heavy Laser Last Messages --------------- 09568_ S-43 Plague destroyed. 09571_ Adv. Visual Processing Unit destroyed. 09572_ S-43 Plague destroyed. 09576_ Acquired 65 matter. 09577_ Hardcell Cannon destroyed. 09579_ Acquired Xenon Bombardment Thruster. 09580_ Slug penetrates Wall. 09586_ Y 5:LQLR=X9XA9W=>=NK7B&/DCMWQ/HIOG9 09586_ Xenon Bombardment Thruster destroyed. 09589_ Biometal Heavy Treads destroyed. 09590_ Penetrated by Slug. 09601_ KHNKRZYTZT#XRY,ONEM